bitfinex-derivatives/quotes_SOLF0:USTF0_20250714
["timestamp","ask_amount","ask_price","bid_price","bid_amount"]
[1752535029599,3.37,162.0,161.99,9.5117]
[1752535031507,3.37,162.0,161.99,6.1717]
[1752535031703,3.47,161.99,161.88,13.77658958]
[1752535031905,5.61854627,161.89,161.84,2.14854627]
[1752535032210,5.15320675,161.93,161.85,5.58854627]
[1752535032405,4.47058809,161.92,161.86,5.58854627]
[1752535032709,2.19343934,161.88,161.86,3.44]
[1752535032910,2.14854627,161.87,161.85,3.44]
[1752535033209,3.35831991,161.89,161.84,3.44]
[1752535033605,0.04050384,161.88,161.84,3.44]
[1752535033907,0.04050384,161.88,161.85,3.44]
[1752535034211,3.47,161.87,161.85,9.6169]
[1752535034410,3.47,161.87,161.85,3.44]
[1752535034910,3.47,161.87,161.86,9.6166]
[1752535035912,3.47,161.87,161.85,6.1768]
[1752535036212,3.47,161.87,161.83,3.44]
[1752535036606,3.47,161.86,161.84,3.44]
[1752535036813,3.47,161.86,161.81,3.44]
[1752535037016,3.47,161.91,161.87,6.176]
[1752535037220,9.53271991,161.92,161.87,6.176]
[1752535037221,3.47,161.88,161.87,6.176]
[1752535037515,3.47,161.88,161.85,3.44]
[1752535037716,3.47,161.88,161.86,6.1764]
[1752535038721,3.47,161.88,161.87,6.1762]
[1752535039017,6.82831991,161.88,161.85,3.44]
[1752535039212,3.47,161.87,161.85,3.44]
[1752535040218,3.47,161.87,161.86,6.1765]
[1752535040525,3.47,161.87,161.78,6.79831991]
[1752535040724,3.35831991,161.86,161.78,6.79831991]
[1752535040914,3.35831991,161.86,161.78,3.35831991]
[1752535041324,3.40341303,161.84,161.77,177.74]
[1752535042515,3.40341303,161.84,161.82,6.1779]
[1752535043127,3.40341303,161.84,161.83,6.1778]
[1752535043518,0.04509312,161.84,161.83,6.1778]
[1752535052742,0.04509312,161.84,161.77,3.35952673]
[1752535053235,0.04509312,161.84,161.81,6.1783]
[1752535053637,0.04509312,161.84,161.77,3.35952673]
[1752535054038,0.04509312,161.84,161.82,6.1781]
[1752535054439,0.04509312,161.84,161.77,3.35952673]
[1752535055743,0.04509312,161.84,161.75,665.16379105]
[1752535055944,0.04509312,161.84,161.78,3.35952673]
[1752535056443,0.04509312,161.84,161.82,6.1779]
[1752535059844,0.04509312,161.84,161.83,6.1778]
[1752535060445,0.04509312,161.84,161.77,3.36040184]
[1752535061040,0.04509312,161.84,161.8,6.1786]
[1752535062347,0.04509312,161.84,161.81,6.1785]
[1752535063349,6.22259312,161.84,161.81,6.1785]
[1752535065841,9.58355505,161.84,161.81,6.1785]
[1752535066648,6.1779,161.83,161.8,6.1787]
[1752535066847,3.36145027,161.82,161.75,652.80239105]
[1752535067049,3.36145027,161.82,161.75,533.2]
[1752535067643,0.04282189,161.8,161.75,533.2]
[1752535069058,0.04282189,161.8,161.79,6.1793]
[1752535071062,0.04282189,161.8,161.78,6.1795]
[1752535072458,0.04282189,161.8,161.79,6.1793]
[1752535075460,4.64440788,161.8,161.79,6.1793]
[1752535077662,4.64440788,161.8,161.78,6.1795]
[1752535077863,4.60158599,161.79,161.78,6.1795]
[1752535081066,4.60158599,161.79,161.77,6.1797]
[1752535081266,0.04282189,161.8,161.77,6.1797]
[1752535081462,4.61055684,161.79,161.77,6.1797]
[1752535081671,2.15134912,161.79,161.75,710.98]
[1752535081868,4.61097456,161.78,161.75,710.98]
[1752535082163,6.1797,161.78,161.7,19.84903993]
[1752535082462,2.15229894,161.76,161.72,2.15229894]
[1752535082666,2.15229894,161.76,161.74,6.181]
[1752535082867,2.19969836,161.76,161.74,6.181]
[1752535083069,0.04739942,161.76,161.74,6.181]
[1752535083767,0.04739942,161.76,161.75,6.1808]
[1752535083968,4.65514293,161.76,161.75,6.1808]
[1752535085169,0.04739942,161.76,161.67,533.8]
[1752535085473,0.04739942,161.76,161.69,3.36309897]
[1752535085975,0.04739942,161.76,161.74,6.1809]
[1752535087873,0.04739942,161.76,161.75,6.1808]
[1752535088973,4.60206202,161.82,161.76,3.36309897]
[1752535089171,3.36309897,161.83,161.76,3.36309897]
[1752535089370,7.96516099,161.83,161.81,6.1785]
[1752535089575,3.36309897,161.83,161.81,6.1785]
[1752535090975,3.36309897,161.83,161.82,6.1781]
[1752535091477,3.36309897,161.83,161.81,6.1784]
[1752535092177,4.60206202,161.84,161.82,6.1781]
[1752535092881,7.96516099,161.85,161.82,6.1781]
[1752535093280,4.60206202,161.84,161.82,6.1781]
[1752535093578,4.60206202,161.84,161.8,0.04316423]
[1752535093780,4.60206202,161.84,161.81,6.1784]
[1752535094477,10.77946202,161.84,161.8,6.22196423]
[1752535094780,3.36309897,161.83,161.8,0.04316423]
[1752535094980,7.96516099,161.83,161.8,0.04316423]
[1752535095184,4.60206202,161.82,161.8,0.04316423]
[1752535095380,10.78036202,161.82,161.8,0.04316423]
[1752535096684,6.1785,161.81,161.8,0.04316423]
[1752535099485,10.78036202,161.82,161.8,0.04316423]
[1752535099679,6.1783,161.82,161.8,0.04316423]
[1752535099986,10.78036202,161.82,161.8,0.04316423]
[1752535100285,6.1785,161.81,161.8,0.04316423]
[1752535101686,10.78036202,161.82,161.8,0.04316423]
[1752535102077,4.60206202,161.81,161.8,0.04316423]
[1752535102385,10.78056202,161.81,161.8,0.04316423]
[1752535102585,7.96516099,161.81,161.71,533.84]
[1752535102776,4.60206202,161.8,161.72,3.36309897]
[1752535102976,10.78116202,161.8,161.75,6.1806]
[1752535103177,4.60206202,161.79,161.75,6.1806]
[1752535104181,4.64571637,161.79,161.75,6.1806]
[1752535105083,4.64571637,161.79,161.72,3.36309897]
[1752535106986,4.64571637,161.79,161.76,6.1802]
[1752535107390,4.64571637,161.79,161.72,3.36309897]
[1752535107577,4.64571637,161.79,161.77,6.18]
[1752535108486,0.04365435,161.79,161.77,6.18]
[1752535108982,4.64571637,161.79,161.77,6.18]
[1752535109285,0.04365435,161.79,161.77,6.18]
[1752535109484,4.64571637,161.79,161.77,6.18]
[1752535109689,0.04365435,161.79,161.77,6.18]
[1752535109892,4.64571637,161.79,161.77,6.18]
[1752535110186,0.04365435,161.79,161.77,6.18]
[1752535110486,4.64571637,161.79,161.77,6.18]
[1752535110688,0.04365435,161.79,161.77,6.18]
[1752535110984,4.64571637,161.79,161.78,6.1797]
[1752535111181,0.04365435,161.79,161.78,6.1797]
[1752535111381,4.64571637,161.79,161.78,6.1797]
[1752535111584,0.04365435,161.79,161.78,6.1797]
[1752535111782,4.64571637,161.79,161.78,6.1797]
[1752535111978,0.04365435,161.79,161.78,6.1797]
[1752535112180,4.64571637,161.79,161.78,6.1797]
[1752535112386,0.04365435,161.79,161.78,6.1797]
[1752535112586,4.64571637,161.79,161.78,6.1797]
[1752535112787,0.04365435,161.79,161.78,6.1797]
[1752535113086,4.64571637,161.79,161.78,6.1797]
[1752535113290,0.04365435,161.79,161.78,6.1797]
[1752535113483,4.64571637,161.79,161.78,6.1797]
[1752535113786,0.04365435,161.79,161.78,6.1797]
[1752535117687,0.04365435,161.79,161.77,6.1799]
[1752535118187,4.64571637,161.79,161.77,6.1799]
[1752535118389,0.04365435,161.79,161.77,6.1799]
[1752535118892,4.64571637,161.79,161.77,6.1799]
[1752535119588,6.1799,161.78,161.7,177.72]
[1752535119786,4.60206202,161.78,161.71,3.36309897]
[1752535120091,3.40675332,161.79,161.71,3.36309897]
[1752535120292,6.1802,161.77,161.73,6.1815]
[1752535120590,4.60779216,161.77,161.71,3.36309897]
[1752535120891,10.78759216,161.78,161.75,6.1808]
[1752535121090,4.60779216,161.77,161.75,6.1808]
[1752535122592,4.60779216,161.77,161.71,3.36309897]
[1752535122893,4.60779216,161.78,161.71,3.36309897]
[1752535123090,0.03998551,161.76,161.71,3.36309897]
[1752535123291,0.03998551,161.76,161.75,6.1808]
[1752535130693,4.6463536,161.76,161.75,6.1808]
[1752535130898,0.03998551,161.76,161.75,6.1808]
[1752535131097,4.6463536,161.76,161.74,6.181]
[1752535131398,4.60634242,161.75,161.7,180.90309897]
[1752535131998,4.60634242,161.75,161.73,6.1813]
[1752535132200,4.60634242,161.75,161.7,177.54]
[1752535134103,4.60634242,161.75,161.73,6.1816]
[1752535137202,4.60634242,161.75,161.7,177.54]
[1752535137801,10.78734242,161.75,161.72,6.1818]
[1752535138801,10.78734242,161.75,161.73,6.1815]
[1752535140607,4.60634242,161.75,161.73,6.1815]
[1752535140906,4.60634242,161.75,161.7,177.72]
[1752535141908,4.60634242,161.75,161.72,6.1818]
[1752535142104,10.78724242,161.75,161.72,6.1818]
[1752535142299,10.78724242,161.75,161.7,177.72]
[1752535143410,10.78724242,161.75,161.72,6.1819]
[1752535147208,4.60634242,161.74,161.72,6.1819]
[1752535147408,10.78724242,161.75,161.72,6.1819]
[1752535147712,4.60634242,161.75,161.73,6.1814]
[1752535148108,4.60634242,161.75,161.7,177.64]
[1752535148308,10.78734242,161.75,161.72,6.1818]
[1752535149008,12.94000095,161.75,161.72,6.1818]
[1752535149205,2.15265853,161.74,161.72,6.1818]
[1752535150307,8.33395853,161.74,161.71,6.1822]
[1752535151007,8.33395853,161.74,161.71,8.33485853]
[1752535152715,4.60634242,161.75,161.72,2.15265853]
[1752535152908,2.19264404,161.76,161.72,2.15265853]
[1752535153210,2.19264404,161.76,161.73,6.1813]
[1752535153411,2.15265853,161.75,161.73,6.1813]
[1752535154205,8.33355853,161.75,161.72,6.1818]
[1752535156610,6.1809,161.75,161.72,6.1818]
[1752535156810,8.33355853,161.75,161.72,6.1818]
[1752535157510,6.1814,161.74,161.71,183.7622]
[1752535157714,6.1814,161.74,161.71,177.58]
[1752535157914,6.1814,161.74,161.7,2.15265853]
[1752535158214,2.15265853,161.73,161.71,6.1822]
[1752535158417,2.15265853,161.72,161.68,179.71265853]
[1752535158613,2.15265853,161.72,161.7,6.1825]
[1752535159815,2.15265853,161.72,161.71,6.1823]
[1752535160413,4.64689683,161.73,161.71,6.1823]
[1752535160613,6.79955536,161.73,161.7,6.1826]
[1752535160813,12.98115536,161.73,161.7,6.1826]
[1752535161008,8.37481294,161.73,161.7,6.1826]
[1752535161618,12.98115536,161.73,161.7,6.1826]
[1752535161819,2.15265853,161.72,161.7,6.1826]
[1752535164211,2.15265853,161.72,161.68,2.15265853]
[1752535164212,6.75855557,161.72,161.68,2.15265853]
[1752535164612,4.60589704,161.71,161.68,2.15265853]
[1752535164811,4.60589704,161.71,161.67,2.15265853]
[1752535165214,10.78829704,161.71,161.68,6.1833]
[1752535165614,4.60589704,161.71,161.68,6.1833]
[1752535165817,4.60589704,161.71,161.69,6.183]
[1752535166221,6.75855557,161.71,161.69,6.183]
[1752535166422,2.15265853,161.71,161.69,6.183]
[1752535166620,2.15265853,161.7,161.69,6.183]
[1752535167217,6.75814089,161.71,161.68,6.1833]
[1752535167420,8.33505853,161.71,161.68,6.1833]
[1752535167620,2.15265853,161.7,161.68,6.1833]
[1752535169223,2.15265853,161.71,161.69,6.1831]
[1752535169424,4.60548236,161.71,161.69,2.15265853]
[1752535169722,4.60548236,161.72,161.66,177.54]
[1752535169922,0.04055441,161.73,161.7,2.15265853]
[1752535170124,0.04055441,161.73,161.71,2.15265853]
[1752535170323,4.64628182,161.73,161.71,2.15265853]
[1752535170520,4.64628182,161.73,161.72,6.182]
[1752535171123,4.64628182,161.73,161.72,8.33465853]
[1752535171324,0.04055441,161.73,161.72,8.33465853]
[1752535172824,4.60782416,161.77,161.72,179.97265853]
[1752535173025,4.60782416,161.76,161.73,3.36197671]
[1752535173225,4.60782416,161.79,161.73,3.36197671]
[1752535173425,4.60782416,161.78,161.73,3.36197671]
[1752535173627,4.60782416,161.77,161.73,3.36197671]
[1752535173825,4.60782416,161.76,161.73,3.36197671]
[1752535174027,4.60782416,161.78,161.74,0.04659144]
[1752535174229,4.60782416,161.77,161.74,0.04659144]
[1752535174528,4.60782416,161.76,161.75,6.1808]
[1752535174728,4.60782416,161.78,161.75,6.1808]
[1752535174926,4.60782416,161.77,161.75,6.1808]
[1752535175128,4.60782416,161.76,161.75,6.1808]
[1752535175328,4.60782416,161.78,161.76,6.1804]
[1752535175528,4.60782416,161.77,161.76,6.1804]
[1752535177335,4.60782416,161.79,161.77,6.18]
[1752535177533,4.60782416,161.78,161.77,6.18]
[1752535177933,4.60782416,161.8,161.77,6.18]
[1752535178134,4.60782416,161.79,161.77,6.18]
[1752535178331,4.6070076,161.78,161.77,6.18]
[1752535178530,4.60599718,161.8,161.77,6.18]
[1752535178728,4.60599718,161.79,161.76,0.04118964]
[1752535179032,4.60599718,161.8,161.76,0.04118964]
[1752535179234,4.60599718,161.79,161.76,0.04118964]
[1752535179432,4.60599718,161.8,161.76,0.04118964]
[1752535180135,4.60599718,161.8,161.78,6.1794]
[1752535181134,4.60599718,161.8,161.76,0.04118964]
[1752535181431,8.51518346,161.84,161.77,3.36197671]
[1752535181628,4.60066953,161.83,161.77,3.36197671]
[1752535181825,4.60066953,161.82,161.77,3.36197671]
[1752535182034,4.60066953,161.83,161.8,6.1786]
[1752535182328,4.60066953,161.82,161.8,6.1786]
[1752535182532,4.60066953,161.83,161.8,6.1786]
[1752535182733,4.60066953,161.83,161.8,0.04451338]
[1752535183033,4.60066953,161.85,161.8,0.04451338]
[1752535183226,4.60066953,161.86,161.8,0.04451338]
[1752535183624,5.15320675,161.88,161.8,0.04451338]
[1752535183625,7.96264624,161.87,161.8,0.04451338]
[1752535183929,10.77736953,161.86,161.82,6.1779]
[1752535186239,6.177,161.85,161.82,6.1779]
[1752535187339,6.177,161.85,161.83,6.1777]
[1752535187539,10.77746953,161.86,161.83,6.1777]
[1752535187739,6.1768,161.86,161.83,6.1777]
[1752535188140,6.177,161.85,161.83,6.1777]
[1752535188639,3.36197671,161.87,161.82,6.178]
[1752535189036,3.36197671,161.87,161.82,6.22122556]
[1752535189238,9.53917671,161.85,161.82,6.22122556]
[1752535190038,6.1772,161.85,161.82,6.22122556]
[1752535192644,7.96264624,161.88,161.82,0.04322556]
[1752535193034,3.36197671,161.88,161.82,0.04322556]
[1752535193338,9.53807671,161.88,161.82,0.04322556]
[1752535193935,6.1764,161.87,161.82,0.04322556]
[1752535194941,6.1764,161.87,161.83,6.1776]
[1752535196143,6.1764,161.87,161.82,0.04322556]
[1752535196545,9.53797671,161.88,161.82,0.04322556]
[1752535196944,6.1757,161.89,161.85,6.177]
[1752535197640,9.53717671,161.9,161.85,0.04004167]
[1752535197840,7.9288001,161.92,161.85,0.04004167]
[1752535198036,7.9288001,161.92,161.85,3.40201838]
[1752535198237,4.56682339,161.93,161.85,3.40201838]
[1752535198441,7.9288001,161.93,161.85,3.40201838]
[1752535198640,6.1745,161.92,161.88,6.1755]
[1752535199246,6.1747,161.91,161.85,3.36197671]
[1752535199446,6.1747,161.91,161.88,0.0419553]
[1752535200338,6.1745,161.92,161.88,0.0419553]
[1752535201041,7.92371146,161.93,161.88,0.0419553]
[1752535201446,6.1751,161.9,161.88,0.0419553]
[1752535202045,6.1749,161.91,161.88,6.2177553]
[1752535202852,7.92371146,161.93,161.88,0.0419553]
[1752535203148,3.36197671,161.92,161.88,0.0419553]
[1752535203745,6.1749,161.91,161.88,6.2175553]
[1752535204346,9.53637671,161.92,161.89,6.1754]
[1752535204844,6.1747,161.91,161.89,6.1754]
[1752535205049,6.1747,161.91,161.88,6.2176553]
[1752535206851,4.55892278,161.93,161.88,0.0419553]
[1752535207047,3.36197671,161.94,161.88,0.0419553]
[1752535207943,6.1744,161.92,161.9,6.1751]
[1752535208845,10.75255296,161.98,161.9,6.1751]
[1752535209051,6.1741,161.93,161.88,3.40393201]
[1752535209254,6.1741,161.93,161.88,3.36197671]
[1752535209652,6.1738,161.94,161.89,0.04099358]
[1752535209951,3.36197671,161.95,161.89,0.04099358]
[1752535210154,6.174,161.93,161.9,6.1749]
[1752535210747,6.1737,161.94,161.91,6.1746]
[1752535210948,3.36197671,161.95,161.89,0.04099358]
[1752535211348,3.36197671,161.95,161.91,6.1745]
[1752535211549,6.1737,161.94,161.89,0.04099358]
[1752535211954,6.1737,161.94,161.91,6.1744]
[1752535212348,3.36197671,161.97,161.9,3.36197671]
[1752535212752,9.53467671,161.97,161.9,3.36197671]
[1752535212953,4.5568588,161.98,161.95,6.1732]
[1752535213154,3.36197671,161.99,161.95,6.1732]
[1752535213353,6.1722,161.98,161.95,6.1732]
[1752535214052,6.1722,161.98,161.95,6.2144651]
[1752535215554,9.53417671,161.98,161.95,6.2144651]
[1752535216354,9.53417671,161.98,161.95,0.0412651]
[1752535218253,6.1725,161.97,161.95,0.0412651]
[1752535219155,6.1728,161.96,161.95,0.0412651]
[1752535221552,9.53477671,161.96,161.95,0.0412651]
[1752535221757,3.36197671,161.94,161.87,3.36197671]
[1752535222249,6.1741,161.93,161.87,3.36197671]
[1752535223559,0.04250973,161.92,161.87,3.36197671]
[1752535224856,0.04250973,161.92,161.91,6.1747]
[1752535225255,3.36197671,161.99,161.91,3.36197671]
[1752535225453,10.74299274,161.98,161.94,6.1733]
[1752535225653,4.57069274,161.98,161.94,6.1733]
[1752535226063,6.1724,161.97,161.94,6.1733]
[1752535226256,3.36197671,161.99,161.94,6.1733]
[1752535226457,7.93266945,161.99,161.94,6.1733]
[1752535226654,3.36197671,161.99,161.94,6.2149737]
[1752535226855,7.93266945,161.99,161.94,6.2149737]
[1752535227161,3.36197671,161.99,161.94,6.2149737]
[1752535227353,7.93266945,161.99,161.94,6.2149737]
[1752535227558,3.36197671,161.99,161.94,6.2149737]
[1752535227856,7.93266945,161.99,161.94,6.2149737]
[1752535228159,3.36197671,161.99,161.94,6.2149737]
[1752535228358,7.93266945,161.99,161.94,6.2149737]
[1752535228659,3.36197671,161.99,161.94,6.2149737]
[1752535228859,7.93266945,161.99,161.94,6.2149737]
[1752535229062,6.1724,161.98,161.94,6.2149737]
[1752535229359,6.1724,161.98,161.95,6.1732]
[1752535229555,10.74309274,161.98,161.95,6.1732]
[1752535229753,6.1724,161.98,161.95,6.1732]
[1752535230151,10.74309274,161.98,161.95,6.1732]
[1752535230351,6.1724,161.98,161.95,6.1732]
[1752535231261,6.1725,161.97,161.95,6.1732]
[1752535232161,10.74279274,161.98,161.95,6.1732]
[1752535232352,6.1721,161.98,161.95,6.1732]
[1752535232757,10.74279274,161.98,161.95,6.1732]
[1752535232958,6.1721,161.98,161.95,6.1732]
[1752535233955,6.1724,161.97,161.95,6.1732]
[1752535236164,6.1724,161.97,161.94,6.2150737]
[1752535236565,6.173,161.96,161.94,0.0416737]
[1752535237261,6.1732,161.95,161.94,0.0416737]
[1752535237866,6.173,161.96,161.94,0.0416737]
[1752535238964,6.1732,161.95,161.94,0.0416737]
[1752535239566,10.75121157,161.96,161.94,0.0416737]
[1752535239766,6.173,161.96,161.94,0.0416737]
[1752535239966,4.57821157,161.98,161.95,6.1732]
[1752535240367,6.1726,161.97,161.95,6.1732]
[1752535240969,6.1726,161.97,161.94,6.2150737]
[1752535242173,10.75041157,161.98,161.95,6.1732]
[1752535242367,4.57821157,162.0,161.94,0.0416737]
[1752535242568,4.57821157,161.99,161.95,3.36197671]
[1752535242770,10.74971157,162.0,161.96,6.1725]
[1752535242969,6.1715,162.0,161.96,6.1725]
[1752535243171,10.74971157,162.0,161.95,3.36197671]
[1752535243470,6.1715,162.0,161.96,0.04342061]
[1752535243665,10.74971157,162.0,161.96,0.04342061]
[1752535243862,6.1715,162.0,161.96,0.04342061]
[1752535244067,10.74971157,162.0,161.97,6.1724]
[1752535244270,6.1715,162.0,161.97,6.1724]
[1752535244472,10.74971157,162.0,161.97,6.1724]
[1752535244671,6.1715,162.0,161.97,6.1724]
[1752535244970,4.57821157,161.99,161.96,6.21622061]
[1752535247273,4.57821157,161.99,161.97,6.1724]
[1752535249871,10.74991157,161.99,161.97,6.1724]
[1752535250072,4.57821157,161.98,161.97,6.1724]
[1752535251471,9.53317671,162.01,161.96,0.04342061]
[1752535251472,4.57821157,162.0,161.96,6.21602061]
[1752535251672,4.57821157,161.99,161.96,6.21602061]
[1752535251973,4.57821157,161.98,161.96,0.04342061]
[1752535252172,4.57821157,161.99,161.96,0.04342061]
[1752535252371,4.57821157,161.98,161.96,0.04342061]
[1752535252572,4.57821157,161.99,161.96,0.04342061]
[1752535252873,4.57821157,161.98,161.96,0.04342061]
[1752535253073,4.57821157,161.99,161.97,6.1723]
[1752535253274,4.57821157,161.98,161.97,6.1723]
[1752535253475,4.57821157,161.99,161.97,6.1723]
[1752535253775,4.57821157,161.98,161.97,6.1723]
[1752535253971,4.57821157,161.99,161.97,6.1723]
[1752535254177,4.57821157,161.98,161.97,6.1723]
[1752535255980,4.57821157,162.0,161.98,6.172]
[1752535256180,4.57821157,161.99,161.98,6.172]
[1752535260789,4.57821157,161.99,161.97,6.1723]
[1752535261086,4.57821157,161.98,161.96,0.04342061]
[1752535261286,6.1713,162.0,161.96,0.04342061]
[1752535261486,4.59711746,161.99,161.96,0.04342061]
[1752535261786,4.59711746,161.98,161.96,0.04342061]
[1752535261987,6.1713,162.0,161.96,0.04342061]
[1752535262184,4.59709354,161.99,161.97,6.1724]
[1752535262383,4.59709354,161.98,161.97,6.1724]
[1752535264284,6.171,162.01,161.98,6.1718]
[1752535264593,4.59669038,162.0,161.98,6.1718]
[1752535264791,4.59669038,161.99,161.98,6.1718]
[1752535265390,4.59669038,162.0,161.98,6.1718]
[1752535265693,4.59669038,161.99,161.98,6.1718]
[1752535265992,4.59669038,162.0,161.98,6.1718]
[1752535266292,4.59669038,161.99,161.98,6.1718]
[1752535266492,4.59669038,162.0,161.98,6.1718]
[1752535266795,4.59669038,161.99,161.98,6.1718]
[1752535266992,4.59669038,162.0,161.98,6.1718]
[1752535267192,4.59669038,161.99,161.98,6.1718]
[1752535268691,4.59669038,162.0,161.98,6.1718]
[1752535268891,4.59669038,161.99,161.98,6.1718]
[1752535269092,4.59669038,162.0,161.96,0.04342061]
[1752535269295,4.59669038,161.99,161.96,0.04342061]
[1752535269496,3.36197671,162.02,161.96,0.04342061]
[1752535269694,10.76935188,162.01,161.98,6.1718]
[1752535269895,4.59835188,162.0,161.98,6.1718]
[1752535270095,6.171,162.01,161.98,6.1718]
[1752535270096,4.59835188,161.99,161.98,6.1718]
[1752535272002,4.59835188,161.99,161.96,0.04342061]
[1752535272196,4.59835188,161.98,161.96,0.04342061]
[1752535272501,4.59835188,161.97,161.96,0.04342061]
[1752535273204,4.59835188,161.97,161.96,6.21622061]
[1752535276006,4.59835188,161.97,161.96,0.04342061]
[1752535276300,10.77075188,161.97,161.96,0.04342061]
[1752535277804,14.13272859,161.97,161.96,0.04342061]
[1752535281306,14.13272859,161.97,161.89,3.36197671]
[1752535281307,6.1734,161.95,161.89,3.36197671]
[1752535281507,4.59835188,161.94,161.89,3.36197671]
[1752535281809,4.59835188,161.93,161.92,6.1743]
[1752535281999,4.59835188,161.94,161.92,6.1743]
[1752535282202,4.59835188,161.93,161.92,6.1743]
[1752535282400,4.59835188,161.94,161.92,6.1743]
[1752535282698,0.04024967,161.94,161.92,6.1743]
[1752535283104,4.60974639,161.93,161.92,6.1743]
[1752535283303,0.04024967,161.94,161.92,6.1743]
[1752535284109,4.60983773,161.93,161.87,127.86697888]
[1752535284407,3.36197671,161.91,161.86,533.52]
[1752535284610,4.60983773,161.9,161.86,533.52]
[1752535284803,4.60983773,161.9,161.86,539.6964]
[1752535284804,4.60983773,161.89,161.86,539.6964]
[1752535285004,6.1754,161.9,161.86,539.6964]
[1752535285200,4.60549168,161.89,161.86,539.6964]
[1752535286008,4.60549168,161.89,161.87,6.1762]
[1752535286311,10.8223179,161.9,161.87,6.1762]
[1752535287001,6.1755,161.89,161.86,539.6964]
[1752535287509,6.1755,161.89,161.86,6.1764]
[1752535287708,9.53747671,161.89,161.86,6.1764]
[1752535287909,6.1759,161.88,161.85,6.1769]
[1752535288108,3.36197671,161.89,161.83,177.32]
[1752535288707,6.1759,161.88,161.85,6.1768]
[1752535290811,6.1763,161.87,161.84,6.1773]
[1752535291508,6.1767,161.86,161.8,3.36197671]
[1752535291703,3.36197671,161.85,161.78,536.68197671]
[1752535291908,3.36197671,161.85,161.79,177.36]
[1752535292108,9.53907671,161.85,161.81,6.1783]
[1752535292308,0.04285162,161.83,161.81,6.1783]
[1752535293616,0.04285162,161.83,161.78,533.32]
[1752535293914,0.04285162,161.83,161.79,177.38]
[1752535294309,6.1784,161.82,161.78,533.32]
[1752535294505,3.40482833,161.83,161.78,533.32]
[1752535294715,0.04285162,161.83,161.81,6.1784]
[1752535300918,0.04285162,161.83,161.82,6.1781]
[1752535302211,0.04285162,161.83,161.82,183.7781]
[1752535304815,0.04285162,161.83,161.82,187.14007671]
[1752535306424,3.36197671,161.91,161.85,6.1769]
[1752535307522,4.57068487,161.95,161.86,3.36197671]
[1752535307825,3.36197671,161.95,161.88,3.36197671]
[1752535308921,6.1742,161.93,161.9,0.04538673]
[1752535309318,3.36197671,161.95,161.9,0.04538673]
[1752535309723,6.1746,161.92,161.9,0.04538673]
[1752535311324,6.1742,161.93,161.9,0.04538673]
[1752535313930,10.7477307,161.93,161.9,0.04538673]
[1752535314129,6.1742,161.93,161.9,0.04538673]
[1752535314928,6.1744,161.92,161.9,0.04538673]
[1752535316126,6.1741,161.93,161.9,0.04538673]
[1752535316529,3.36197671,161.94,161.9,0.04538673]
[1752535316828,7.94978902,161.96,161.9,0.04538673]
[1752535317028,3.36197671,161.96,161.9,0.04538673]
[1752535317623,6.1734,161.95,161.9,6.22028673]
[1752535318022,10.76101231,161.95,161.91,6.1747]
[1752535318226,6.1732,161.95,161.9,0.04538673]
[1752535318632,6.1732,161.95,161.9,6.22028673]
[1752535319932,10.76101231,161.95,161.9,6.22028673]
[1752535320132,6.1732,161.95,161.9,6.22028673]
[1752535320432,6.1736,161.94,161.9,6.22028673]
[1752535320632,3.36197671,161.96,161.9,6.22028673]
[1752535320833,6.1735,161.95,161.9,6.22028673]
[1752535321931,6.1736,161.94,161.9,6.22028673]
[1752535322535,10.76141231,161.95,161.9,6.22028673]
[1752535322731,6.1736,161.95,161.9,6.22028673]
[1752535323534,4.58781231,161.96,161.91,6.1747]
[1752535323734,4.58781231,161.97,161.91,6.1747]
[1752535324239,4.58781231,161.96,161.91,6.1747]
[1752535324534,4.58781231,161.97,161.91,6.1747]
[1752535324732,10.76081231,161.96,161.91,6.1747]
[1752535324933,6.173,161.96,161.91,6.1747]
[1752535325134,10.76081231,161.96,161.91,9.53667671]
[1752535325332,6.173,161.96,161.92,6.1743]
[1752535325727,4.58781231,161.97,161.92,6.1743]
[1752535325728,10.76041231,161.97,161.92,6.1743]
[1752535325933,6.1726,161.97,161.92,6.1743]
[1752535326128,10.77668421,161.97,161.92,6.1743]
[1752535326332,6.1726,161.97,161.92,6.1743]
[1752535326833,10.77668421,161.97,161.93,6.1739]
[1752535327033,6.1726,161.97,161.93,6.1739]